{"text_format":"1","workbook":"xlsx","n_sheets":4,"sheets":["R8様式第1号","R8様式第1号（別紙1）","R8様式第1号（別紙２）","プルダウン"],"not_rendered":{"charts":0,"images":0,"macros":1,"external_links":0,"defined_names":3,"comments":0,"pivot_tables":0},"unopened":[],"bounds":{"document_bytes":16777216,"sheet_cells":100000,"rows_first":2000,"rows_last":500,"rows_between":2000,"halvings":0,"cell_chars":16384,"cell_head_chars":4096},"cells_cut":0,"cells_raw":0,"read":"whole","date_system":"1900"}

{"sheet":"R8様式第1号","index":0,"n_rows":36,"n_cols":15,"rows_kept":36,"cut":false,"hidden":false,"merged":[[1,11,1,14],[4,7,4,9],[4,11,4,13],[5,7,5,13],[6,5,6,13],[3,5,3,6],[3,7,3,9],[3,11,3,13],[4,2,5,4],[6,2,6,4],[7,2,7,4],[4,5,4,6],[5,5,5,6],[7,5,7,8],[7,10,7,13],[11,18,11,19],[33,7,33,10],[11,0,12,14],[13,0,13,14],[9,0,9,14],[15,1,15,4],[15,6,15,10]]}
["様式第1号（第8条関係）",null,null,null,null,null,null,null,null,null,null,null,null,null,"（令和８年度申請用）"]
[null,null,null,null,null,null,null,null,null,null,null,"年　　月　　日"]
[]
["東京都知事殿",null,null,null,null,"郵便番号",null,null,null,null,"―"]
[null,null,"事業主の所在地",null,null,"都道\n府県",null,null,null,null,"区市\n町村"]
[null,null,null,null,null,"丁目・番地・号・建物名"]
[null,null,"事業主の名称",null,null,null,null,null,null,null,null,null,null,null,"印"]
[null,null,"代表者役職",null,null,null,null,null,null,"代表者氏名"]
[]
["東京都正規雇用転換安定化支援助成金\n事業実施計画書兼交付申請書"]
[]
["　東京都正規雇用転換安定化支援助成金（以下「助成金」という。）について、助成金交付要綱第8条に基づき、下記のとおり申請します。"]
[]
["記"]
["1　事業実施予定期間（支援期間）"]
[null,null,null,null,null,"から",{"$f":"IFERROR(VLOOKUP(B16,プルダウン!A:S,2,FALSE),\"\")","v":""},null,null,null,null,"まで"]
["2　事業実施計画",null,null,{"$f":"IF(プルダウン!J8>1,\"無効な入力です\",\"\")","v":""}]
[null,"(1)対象労働者数"]
[null,"(2)退職金制度整備加算申請"]
[]
[null,null,null,null,null,null,null,null,null,null,null,null,null,null,{"$f":"IF(プルダウン!K8>1,\"無効な入力です\",\"\")","v":""}]
[null,"(3)結婚・育児支援制度整備加算申請"]
[]
[]
[null,"(4)介護支援制度整備加算申請"]
[]
[]
[null,"(5)賃上げ加算申請",null,null,{"$f":"IF(プルダウン!N8>1,\"無効な入力です\",\"\")","v":""}]
[]
[null,"   賃上げを実施"]
[]
[]
["3 助成金交付申請額"]
[null,null,null,null,null,null,"金",{"$f":"プルダウン!T8","v":0},null,null,null,"円"]
[]
[null,null,null,null,null,null,null,{"$f":"IF(プルダウン!L8>プルダウン!I9,\"無効な入力です\",\"\")","v":""}]

{"sheet":"R8様式第1号（別紙1）","index":1,"n_rows":33,"n_cols":12,"rows_kept":33,"cut":false,"hidden":false,"merged":[[27,10,28,11],[29,0,31,0],[29,1,31,2],[29,4,29,8],[29,10,29,11],[30,3,30,6],[30,7,30,11],[31,3,31,6],[31,7,31,11],[26,1,26,2],[26,8,26,9],[27,0,28,0],[27,1,28,2],[27,3,28,6],[27,7,28,7],[27,8,28,9],[26,3,26,5],[15,3,15,11],[16,3,16,11],[17,4,17,5],[17,7,17,9],[20,0,25,0],[20,1,25,2],[20,3,20,11],[23,4,23,5],[23,7,23,9],[24,3,25,3],[24,5,24,7],[24,9,24,11],[25,4,25,5],[25,6,25,11],[10,0,19,0],[10,1,19,2],[10,3,10,11],[11,3,11,11],[12,4,12,5],[12,7,12,9],[13,3,14,3],[13,5,13,7],[13,9,13,11],[14,4,14,5],[14,6,14,11],[18,3,19,3],[18,5,18,7],[18,9,18,11],[19,4,19,5],[19,6,19,11],[7,4,7,6],[3,1,3,2],[6,1,6,3],[6,7,6,9],[5,1,5,3],[5,7,5,9],[4,1,4,3],[4,7,4,9],[3,7,3,9],[7,7,7,9],[7,1,7,2],[2,7,2,9],[3,4,3,6],[4,4,4,6],[5,4,5,6],[6,4,6,6]]}
["様式第1号（第8条関係）別紙１",null,null,null,null,null,null,null,null,null,null,"（令和８年度申請用）"]
["４ 助成金交付申請額内訳"]
[null,null,null,null,null,null,null,"交付申請額"]
[null,"対象労働者",null,{"$f":"H4/200000","v":0},"１人２０万円",null,null,{"$f":"プルダウン!O8","v":0}]
[null,"退職金制度整備加算",null,null,"　　１０万円",null,null,{"$f":"プルダウン!P8","v":0}]
[null,"結婚・育児支援制度整備加算",null,null,"　　１０万円",null,null,{"$f":"プルダウン!Q8","v":0}]
[null,"介護支援制度整備加算",null,null,"　　１０万円",null,null,{"$f":"プルダウン!R8","v":0}]
[null,"賃上げ加算",null,{"$f":"H8/120000","v":0},"１人１２万円",null,null,{"$f":"プルダウン!S8","v":0}]
[]
["５　事業主の概要"]
[null,"①雇用保険適用事業所の所在地",null,"㋐キャリアアップ助成金の支給決定を受けた雇用保険適用事業所"]
[]
[null,null,null,"郵便番号",null,null,"-"]
[null,null,null,"住所","都道\n府県",null,null,null,"区市\n町村"]
[null,null,null,null,"番地・号\n建物名"]
[null,null,null,"㋑対象労働者が現在在籍している雇用保険適用事業所"]
[]
[null,null,null,"郵便番号",null,null,"-"]
[null,null,null,"住所","都道\n府県",null,null,null,"区市\n町村"]
[null,null,null,null,"番地・号\n建物名"]
[null,"②書類送付先"]
[]
[]
[null,null,null,"郵便番号",null,null,"-"]
[null,null,null,"住所","都道\n府県",null,null,null,"区市\n町村"]
[null,null,null,null,"番地・号\n建物名"]
[null,"③今年度既に申請した人数\n（同一雇用保険適用事業所内）",null,null,null,null,"人","④","常用労働者数",null,null,"人"]
[null,"⑤業種※1 ",null,null,null,null,null,"⑥","事業内容"]
[]
[null,"⑦連絡先\n※代理人不可",null,"所属",null,null,null,null,null,"氏名"]
[null,null,null,"電話番号（所属）※必須"]
[null,null,null,"電話番号（携帯）※任意"]
["※1 日本標準産業分類（大分類）に基づき、アルファベットと業種名を記入してください。"]

{"sheet":"R8様式第1号（別紙２）","index":2,"n_rows":50,"n_cols":18,"rows_kept":50,"cut":false,"hidden":false,"merged":[[48,2,48,17],[49,3,49,4],[49,5,49,8],[49,9,49,12],[49,13,49,14],[49,16,49,17],[46,2,46,17],[47,3,47,4],[47,5,47,8],[47,9,47,12],[47,13,47,17],[44,3,44,8],[44,9,44,10],[44,11,44,17],[45,4,45,5],[45,7,45,8],[45,9,45,10],[45,11,45,12],[41,2,41,17],[42,3,42,4],[42,5,42,8],[42,9,42,12],[42,13,42,14],[42,16,42,17],[39,2,39,17],[40,3,40,4],[40,5,40,8],[40,9,40,12],[37,3,37,8],[37,9,37,10],[37,11,37,17],[38,4,38,5],[38,7,38,8],[38,9,38,10],[38,11,38,12],[40,13,40,17],[34,2,34,17],[35,3,35,4],[35,5,35,8],[35,9,35,12],[35,13,35,14],[35,16,35,17],[32,2,32,17],[33,3,33,4],[33,5,33,8],[33,9,33,12],[33,13,33,17],[30,3,30,8],[30,9,30,10],[30,11,30,17],[31,4,31,5],[31,7,31,8],[31,9,31,10],[31,11,31,12],[27,2,27,17],[28,3,28,4],[28,5,28,8],[28,9,28,12],[28,13,28,14],[28,16,28,17],[25,2,25,17],[26,3,26,4],[26,5,26,8],[26,9,26,12],[23,3,23,8],[23,9,23,10],[23,11,23,17],[24,4,24,5],[24,7,24,8],[24,9,24,10],[24,11,24,12],[26,13,26,17],[20,2,20,17],[21,3,21,4],[21,5,21,8],[21,9,21,12],[21,13,21,14],[21,16,21,17],[19,3,19,4],[19,5,19,8],[19,9,19,12],[19,13,19,17],[12,2,13,3],[16,3,16,8],[16,9,16,10],[16,11,16,17],[17,4,17,5],[17,7,17,8],[17,9,17,10],[17,11,17,12],[18,2,18,17],[2,0,2,17],[3,2,7,2],[8,2,8,3],[9,2,11,3],[9,4,9,17],[10,4,10,17]]}
["様式第1号（第8条関係）別紙２",null,null,null,null,null,null,null,null,null,null,null,null,null,null,null,null,"（令和８年度申請用）"]
[]
["６　キャリアアップ助成金（正社員化コース）の支給決定通知書内訳"]
[null,null,"助成金支給番号","①",null,null,null,null,"-",null,null,null,null,null,null,null,"-"]
[null,null,null,"②",null,null,null,null,"-",null,null,null,null,null,null,null,"-"]
[null,null,null,"③",null,null,null,null,"-",null,null,null,null,null,null,null,"-"]
[null,null,null,"④",null,null,null,null,"-",null,null,null,null,null,null,null,"-"]
[null,null,null,"⑤",null,null,null,null,"-",null,null,null,null,null,null,null,"-"]
[null,null,"雇用保険適用事業所番号\n(キャリアアップ助成金支給決定時)",null,null,null,null,null,"-",null,null,null,null,null,null,"-"]
[null,null,"雇用保険適用事業所番号\n（対象労働者が現在在籍）",null,"キャリアアップ助成金支給決定時から雇用保険適用事業所番号の変更の有無"]
[]
[null,null,null,null,null,null,null,null,"-",null,null,null,null,null,null,"-"]
[null,null,"支給決定内容"]
[]
["７　対象労働者ごとの情報"]
[]
[null,"①","氏名",null,null,null,null,null,null,"（旧姓）"]
[null,null,null,null,null,null,null,null,null,"転換日",null,null,null,"年",null,"月",null,"日"]
[null,null,"転換日時点"]
[null,null,"所属事務所所在地","東京都",null,null,null,null,null,"派遣（出向）の有無"]
[null,null,"申請日時点"]
[null,null,"所属事務所所在地","東京都",null,null,null,null,null,"派遣（出向）の有無"]
[]
[null,"②","氏名",null,null,null,null,null,null,"（旧姓）"]
[null,null,null,null,null,null,null,null,null,"転換日",null,null,null,"年",null,"月",null,"日"]
[null,null,"転換日時点"]
[null,null,"所属事務所所在地","東京都",null,null,null,null,null,"派遣（出向）の有無"]
[null,null,"申請日時点"]
[null,null,"所属事務所所在地","東京都",null,null,null,null,null,"派遣（出向）の有無"]
[]
[null,"③","氏名",null,null,null,null,null,null,"（旧姓）"]
[null,null,null,null,null,null,null,null,null,"転換日",null,null,null,"年",null,"月",null,"日"]
[null,null,"転換日時点"]
[null,null,"所属事務所所在地","東京都",null,null,null,null,null,"派遣（出向）の有無"]
[null,null,"申請日時点"]
[null,null,"所属事務所所在地","東京都",null,null,null,null,null,"派遣（出向）の有無"]
[]
[null,"④","氏名",null,null,null,null,null,null,"（旧姓）"]
[null,null,null,null,null,null,null,null,null,"転換日",null,null,null,"年",null,"月",null,"日"]
[null,null,"転換日時点"]
[null,null,"所属事務所所在地","東京都",null,null,null,null,null,"派遣（出向）の有無"]
[null,null,"申請日時点"]
[null,null,"所属事務所所在地","東京都",null,null,null,null,null,"派遣（出向）の有無"]
[]
[null,"⑤","氏名",null,null,null,null,null,null,"（旧姓）"]
[null,null,null,null,null,null,null,null,null,"転換日",null,null,null,"年",null,"月",null,"日"]
[null,null,"転換日時点"]
[null,null,"所属事務所所在地","東京都",null,null,null,null,null,"派遣（出向）の有無"]
[null,null,"申請日時点"]
[null,null,"所属事務所所在地","東京都",null,null,null,null,null,"派遣（出向）の有無"]

{"sheet":"プルダウン","index":3,"n_rows":70,"n_cols":23,"rows_kept":70,"cut":false,"hidden":true,"merged":[]}
["取組（開始）","取組（終了）","金額（対象者分）","金額（退職金）","金額（結婚・育児）","金額（介護）","金額（賃上げ）","市区町村","転換年","１～5人","退職金","結婚・育児","介護","賃上げ","労働者分金額","退職金分金額","結婚・育児","介護","賃上げ","合計",null,null,"アルファベット業種"]
[]
["2026-07-01","2026-09-30",200000,100000,100000,100000,120000,"千代田区","令和5",false,false,false,false,false,{"$f":"IF(J3=TRUE,200000,0)","v":0},{"$f":"IF(K3=TRUE,100000,0)","v":0},{"$f":"IF(L3=TRUE,100000,0)","v":0},{"$f":"IF(M3=TRUE,100000,0)","v":0},{"$f":"IF(N3=TRUE,120000,0)","v":0},null,"Ａ","農業，林業",{"$f":"U3&\"  \"&V3","v":"Ａ  農業，林業"}]
["2026-08-01","2026-10-31",400000,null,null,null,240000,"中央区","令和6",false,false,null,null,false,{"$f":"IF(J4=TRUE,400000,0)","v":0},{"$f":"IF(K4=TRUE,100000,0)","v":0},null,null,{"$f":"IF(N4=TRUE,240000,0)","v":0},null,"Ｂ","漁業",{"$f":"U4&\"  \"&V4","v":"Ｂ  漁業"}]
["2026-09-01","2026-11-30",600000,null,null,null,360000,"港区","令和7",false,{"$f":"IF(J5=TRUE,3)","v":false},null,null,false,{"$f":"IF(J5=TRUE,600000,0)","v":0},null,null,null,{"$f":"IF(N5=TRUE,360000,0)","v":0},null,"Ｃ","鉱業，採石業，砂利採取業","Ｃ  鉱業，採石業，砂利採取業"]
["2026-10-01","2026-12-31",800000,null,null,null,480000,"新宿区","令和8",false,{"$f":"IF(J6=TRUE,4)","v":false},{"$f":"COUNTIF(L3:L5,TRUE)","v":0},{"$f":"COUNTIF(M3:M5,TRUE)","v":0},false,{"$f":"IF(J6=TRUE,800000,0)","v":0},null,null,null,{"$f":"IF(N6=TRUE,480000,0)","v":0},null,"Ｄ","建設業","Ｄ  建設業"]
["2026-11-01","2027-01-31",1000000,null,null,null,600000,"文京区",null,false,{"$f":"IF(J7=TRUE,5)","v":false},null,null,false,{"$f":"IF(J7=TRUE,1000000,0)","v":0},null,null,null,{"$f":"IF(N7=TRUE,600000,0)","v":0},null,"Ｅ","製造業","Ｅ  製造業"]
["2026-12-01","2027-02-28",null,null,null,null,null,"台東区",null,{"$f":"COUNTIF(J3:J7,TRUE)","v":0},{"$f":"COUNTIF(K3:K7,TRUE)","v":0},null,null,{"$f":"COUNTIF(N3:N7,TRUE)","v":0},{"$f":"SUM(O3:O7)","v":0},{"$f":"SUM(P3:P7)","v":0},0,0,0,{"$f":"SUM(O8:S8)","v":0},"Ｆ","電気・ガス・熱供給・水道業","Ｆ  電気・ガス・熱供給・水道業"]
[null,null,null,null,null,null,null,"文京区",null,null,null,null,null,null,null,null,null,null,null,null,"Ｇ","情報通信業","Ｇ  情報通信業"]
[null,null,null,null,null,null,null,"台東区",null,null,null,null,null,null,null,null,null,null,null,null,"Ｈ","運輸業，郵便業","Ｈ  運輸業，郵便業"]
[null,null,null,null,null,null,null,"墨田区",null,null,null,null,null,null,null,null,null,null,null,null,"Ｉ","卸売業，小売業","Ｉ  卸売業，小売業"]
[null,null,null,null,null,null,null,"江東区",null,null,null,null,null,null,null,null,null,null,null,null,"Ｊ","金融業，保険業","Ｊ  金融業，保険業"]
[null,null,null,null,null,null,null,"品川区",null,null,null,null,null,null,null,null,null,null,null,null,"Ｋ","不動産業，物品賃貸業","Ｋ  不動産業，物品賃貸業"]
[null,null,null,null,null,null,null,"目黒区",null,null,null,null,null,null,null,null,null,null,null,null,"Ｌ","学術研究，専門・技術サービス業","Ｌ  学術研究，専門・技術サービス業"]
[null,null,null,null,null,null,null,"大田区",null,null,null,null,null,null,null,null,null,null,null,null,"Ｍ","宿泊業，飲食サービス業","Ｍ  宿泊業，飲食サービス業"]
[null,null,null,null,null,null,null,"世田谷区",null,null,null,null,null,null,null,null,null,null,null,null,"Ｎ","生活関連サービス業，娯楽業","Ｎ  生活関連サービス業，娯楽業"]
[null,null,null,null,null,null,null,"渋谷区",null,null,null,null,null,null,null,null,null,null,null,null,"Ｏ","教育，学習支援業","Ｏ  教育，学習支援業"]
[null,null,null,null,null,null,null,"中野区",null,null,null,null,null,null,null,null,null,null,null,null,"Ｐ","医療，福祉","Ｐ  医療，福祉"]
[null,null,null,null,null,null,null,"杉並区",null,null,null,null,null,null,null,null,null,null,null,null,"Ｑ","複合サービス事業","Ｑ  複合サービス事業"]
[null,null,null,null,null,null,null,"豊島区",null,null,null,null,null,null,null,null,null,null,null,null,"Ｒ","サービス業（他に分類されないもの）","Ｒ  サービス業（他に分類されないもの）"]
[null,null,null,null,null,null,null,"北区"]
[null,null,null,null,null,null,null,"荒川区"]
[null,null,null,null,null,null,null,"板橋区"]
[null,null,null,null,null,null,null,"練馬区"]
[null,null,null,null,null,null,null,"足立区"]
[null,null,null,null,null,null,null,"葛飾区"]
[null,null,null,null,null,null,null,"江戸川区"]
[null,null,null,null,null,null,null,"八王子市"]
[null,null,null,null,null,null,null,"立川市"]
[null,null,null,null,null,null,null,"武蔵野市"]
[null,null,null,null,null,null,null,"三鷹市"]
[null,null,null,null,null,null,null,"青梅市"]
[null,null,null,null,null,null,null,"府中市"]
[null,null,null,null,null,null,null,"昭島市"]
[null,null,null,null,null,null,null,"調布市"]
[null,null,null,null,null,null,null,"町田市"]
[null,null,null,null,null,null,null,"小金井市"]
[null,null,null,null,null,null,null,"小平市"]
[null,null,null,null,null,null,null,"日野市"]
[null,null,null,null,null,null,null,"東村山市"]
[null,null,null,null,null,null,null,"国分寺市"]
[null,null,null,null,null,null,null,"国立市"]
[null,null,null,null,null,null,null,"福生市"]
[null,null,null,null,null,null,null,"狛江市"]
[null,null,null,null,null,null,null,"東大和市"]
[null,null,null,null,null,null,null,"清瀬市"]
[null,null,null,null,null,null,null,"東久留米市"]
[null,null,null,null,null,null,null,"武蔵村山市"]
[null,null,null,null,null,null,null,"多摩市"]
[null,null,null,null,null,null,null,"稲城市"]
[null,null,null,null,null,null,null,"羽村市"]
[null,null,null,null,null,null,null,"あきる野市"]
[null,null,null,null,null,null,null,"西東京市"]
[null,null,null,null,null,null,null,"西多摩郡 瑞穂町"]
[null,null,null,null,null,null,null,"西多摩郡 日の出町"]
[null,null,null,null,null,null,null,"西多摩郡 檜原村"]
[null,null,null,null,null,null,null,"西多摩郡 奥多摩町"]
[]
[null,null,null,null,null,null,null,"大島町"]
[null,null,null,null,null,null,null,"利島村"]
[null,null,null,null,null,null,null,"新島村"]
[null,null,null,null,null,null,null,"神津島村"]
[]
[null,null,null,null,null,null,null,"三宅村"]
[null,null,null,null,null,null,null,"御蔵島村"]
[]
[null,null,null,null,null,null,null,"八丈町"]
[null,null,null,null,null,null,null,"青ヶ島村"]
[]
[null,null,null,null,null,null,null,"小笠原村"]